Cogmind - Beta 15 @@@ ROGUE MODE // 2025.09.29 @ 12:01:02 Player: ALICE_MARGADROID_V-02 Result: Destroyed by L-31 Rogue with Katana Performance ------------- Evolutions (2) 1000 Regions Visited (9) 1800 Robots Destroyed (167) 835 Value Destroyed (5777) 5777 Prototype IDs (6) 120 Alien Tech Used (0) 0 Bonus (2671) 2671 TOTAL SCORE: 12203 Bonus ------- High Alert Combat Kills 1069 Follower Combat Kills 236 Entered Garrisons 400 Used RIF Installer 1000 Friendly Fire -34 Cogmind --------- Core Integrity 0/550 Matter 266/300 Energy 229/275 System Corruption 8% Temperature Cool (14) Movement Rolling (145) Ox3 Location -8/Materials Parts ------- > --- POWER (1) -------- Deuterium Engine > --- PROPULSION (4) --- Light Treads Light Treads Armored Huge Wheel > --- UTILITY (4) ------ Huge Storage Unit Improved Targeting Computer Improved Targeting Computer Hardened Medium Armor Plating > --- WEAPON (2) ------- Ion Cannon Ion Cannon > --- INVENTORY (25) --- Deuterium Engine Armored Treads Armored Huge Wheel Large Battery (200) Advanced Weight Redist. System Structural Scanner Experimental Sensor Array Reactive Plating Reactive Plating Reactive Plating Hacking Suite Relay Coupler [NC] (37) Relay Coupler [Grunt] (39) Relay Coupler [Grunt] (25) Relay Coupler [Sentry] (29) Relay Coupler [Sentry] (19) Relay Coupler [Demolisher] (20) Relay Coupler [Heavy] (13) Relay Coupler [Behemoth] (9) Particle Gun Field Laser Missile Launcher Missile Launcher Datajack Peak State ------------ > --- POWER ------------ Deuterium Engine > --- PROPULSION ------- Light Treads Armored Treads Armored Huge Wheel > --- UTILITY ---------- Huge Storage Unit Improved Targeting Computer Improved Targeting Computer Hardened Medium Armor Plating > --- WEAPON ----------- Ion Cannon Ion Cannon > --- INVENTORY -------- Deuterium Engine Light Treads Light Treads Large Battery Advanced Weight Redist. System Structural Scanner Experimental Sensor Array Reactive Plating Reactive Plating Reactive Plating Hacking Suite Relay Coupler [NC] Relay Coupler [Grunt] Relay Coupler [Grunt] Relay Coupler [Sentry] Relay Coupler [Sentry] Relay Coupler [Demolisher] Relay Coupler [Heavy] Relay Coupler [Behemoth] Particle Gun Field Laser Heavy Particle Cannon Missile Launcher Missile Launcher Datajack [Rating: 36] Favorites ----------- Power Improved Ion Engine Engine Improved Ion Engine Power Core Light Nuclear Core Propulsion Light Treads Treads Light Treads Leg Aluminum Leg Wheel Armored Huge Wheel Flight Unit Improved Flight Unit Utility Improved Targeting Computer Device Improved Heat Sink Storage Huge Storage Unit Processor Improved Targeting Computer Protection Light Armor Plating Weapon Improved Medium Laser Energy Gun Improved Medium Laser Energy Cannon Ion Cannon Ballistic Gun Gauss Rifle Launcher Rocket Launcher Impact Weapon Heavy Hammer Build | -11 -10 -10 -9 -9 -8 -8 -8 -8 -8 ------- Run | Yrd Mat Min Mat Min Mat Gar Mat Gar Mat Slots Evolved 4 | . . . 2 . 2 . . . . Power . | . . . . . . . . . . Propulsion 2 | . . . 2 . . . . . . Utility 2 | . . . . . 2 . . . . Weapon . | . . . . . . . . . . Parts Attached 94 | 8 2 2 17 1 7 20 19 8 10 Power 9 | 1 . . 2 . 1 2 2 . 1 Engine 7 | 1 . . 2 . 1 . 2 . 1 Core 2 | . . . . . . 2 . . . Reactor . | . . . . . . . . . . Propulsion 36 | 2 . . 6 1 3 8 8 3 5 Treads 29 | . . . 4 1 3 8 8 1 4 Leg 5 | 2 . . 1 . . . . 2 . Wheel 1 | . . . . . . . . . 1 Hover . | . . . . . . . . . . Flight 1 | . . . 1 . . . . . . Utility 19 | 2 1 2 3 . 1 3 1 2 4 Device 9 | . 1 1 2 . . . . 2 3 Storage 4 | 2 . . 1 . . . 1 . . Processor 2 | . . . . . 1 1 . . . Hackware . | . . . . . . . . . . Protection 4 | . . 1 . . . 2 . . 1 Artifact . | . . . . . . . . . . Weapon 30 | 3 1 . 6 . 2 7 8 3 . Energy Gun 14 | 2 1 . 4 . 1 2 4 . . Energy Cannon 6 | . . . 1 . . . 2 3 . Ballistic Gun 3 | 1 . . 1 . . 1 . . . Ballistic Cannon . | . . . . . . . . . . Launcher 5 | . . . . . . 3 2 . . Special Weapon . | . . . . . . . . . . Impact Weapon 2 | . . . . . 1 1 . . . Slashing Weapon . | . . . . . . . . . . Piercing Weapon . | . . . . . . . . . . Special Melee Weapon . | . . . . . . . . . . Unidentified Prototypes 6 | . . 1 4 . . . 1 . . Corrupted Parts 1 | . . . . . . . 1 . . System Corruption 6 | . . . . . . . 6 . . Parts Lost 26 | . . . 4 . 3 7 5 7 . Power 1 | . . . . . . 1 . . . Propulsion 11 | . . . . . . 4 3 4 . Utility 4 | . . . 1 . 1 1 . 1 . Weapon 10 | . . . 3 . 2 1 2 2 . Highest Loss Streak 3 | . . . 2 . 2 2 3 3 . To Critical Strikes . | . . . . . . . . . . Average Backups 21 | 3 6 8 18 24 24 23 24 24 24 Power 1 | . 1 1 1 1 . 1 1 1 . Propulsion 3 | 1 2 2 2 4 4 6 3 3 2 Utility 10 | . 1 3 7 9 8 8 15 15 15 Weapon 6 | . 1 1 7 10 10 6 4 4 4 Tool/Special . | . . . . . . . . . . Unused Backups 50 | . 1 1 7 . 5 8 11 . 17 Power 5 | . 1 . . . . 1 2 . 1 Propulsion 6 | . . 1 1 . . 1 2 . 1 Utility 24 | . . . 1 . 1 5 5 . 12 Weapon 14 | . . . 5 . 4 1 2 . 2 Tool/Special 1 | . . . . . . . . . 1 Average Slot Usage (%) 98 | . 100 100 99 100 99 99 99 98 92 Engine 9 | . 14 14 11 11 9 5 8 9 9 Treads 34 | . . . 40 44 36 35 35 31 18 Leg 3 | . 28 28 3 . . . . 2 9 Device 7 | . 5 5 7 11 9 7 8 8 . Storage 10 | . 22 14 11 11 9 9 9 9 9 Processor 10 | . . . . . 9 16 18 18 18 Protection 2 | . . 8 3 . 8 2 . . 6 Energy Gun 13 | . 25 28 21 22 15 12 9 . . Energy Cannon 3 | . . . . . . . 3 17 17 Ballistic Gun 1 | . 2 . . . . . 4 . . Peak Build Rating 36 | 7 8 16 23 22 25 31 32 33 36 Average Rating 23 | 5 7 8 17 22 24 26 29 30 31 On Entrance 17 | . 6 8 8 22 22 23 31 31 26 Naked Turns . | . . . . . . . . . . Heaviest Build 109 | 19 19 17 94 94 97 98 102 102 109 Greatest Support 85 | 20 20 20 80 80 80 80 85 85 60 Greatest Overweight (x) 5 | . . . 1 1 1 2 1 5 3 Average Overweight (x) . | . . . . 1 1 1 1 1 2 Largest Inventory Capacity 25 | 8 8 8 25 25 25 25 25 25 25 Average Capacity 23 | 7 8 8 22 25 25 25 25 25 25 Most Carried 25 | 5 8 8 25 25 25 25 25 25 25 Average Carried 21 | 3 6 8 18 24 24 23 24 24 24 Final Capacity 25 | 8 8 8 25 25 25 25 25 25 25 Final Carried 25 | 5 8 8 25 25 24 25 25 24 25 Class Distribution -------------------- 39% | Mutant 32% | Scavenger-Mutant 27% | Bothacker-Mutant Dominant Class ---------------- Mutant | -10/Materials Mutant | -10/Mines Mutant | -9/Materials Mutant | -9/Mines Scavenger-Mutant | -8/Materials Scavenger-Mutant | -8/Garrison Bothacker-Mutant | -8/Materials Bothacker-Mutant | -8/Garrison Bothacker-Mutant | -8/Materials Resources | -11 -10 -10 -9 -9 -8 -8 -8 -8 -8 ----------- Run | Yrd Mat Min Mat Min Mat Gar Mat Gar Mat Matter Collected 2728 | 224 102 28 322 123 94 553 453 490 339 Remotely . | . . . . . . . . . . Salvage Created 6010 | 130 223 28 1274 31 522 762 1629 936 475 Parts 303 | 4 14 5 50 1 30 49 92 35 23 Haulers Intercepted 11 | . . . 4 . 1 . 5 . 1 Recyclers Shooed 10 | . 2 . 4 . 2 . 1 . 1 Parts Field Recycled . | . . . . . . . . . . Retrieved Matter . | . . . . . . . . . . Parts Self-Destructed . | . . . . . . . . . . Prevented . | . . . . . . . . . . Kills | -11 -10 -10 -9 -9 -8 -8 -8 -8 -8 ------- Run | Yrd Mat Min Mat Min Mat Gar Mat Gar Mat Combat Hostiles Destroyed 115 | . 3 2 16 . 7 29 26 24 8 Guns 52 | . 3 2 15 . 7 9 16 . . Cannons 22 | . . . . . . . 5 12 5 AOE 37 | . . . . . . 19 5 10 3 Classes Destroyed 15 | 2 3 1 4 1 2 1 . 1 . Worker 10 | . . . 1 . 3 . 5 . 1 Builder 3 | . . . . . 2 . 1 . . Tunneler 7 | 3 . . 3 . . . 1 . . Hauler 11 | . . . 4 . 1 . 5 . 1 Recycler 9 | 1 1 . 5 . . . 1 . 1 Mechanic 1 | . . . . 1 . . . . . Operator 4 | . 1 . 2 . . . 1 . . Watcher 7 | . 1 . . . 1 . 4 . 1 Swarmer 22 | . . 2 2 . . 10 5 3 . Grunt 54 | . 3 . 9 . 1 8 14 15 4 Brawler 2 | . . . 1 . . . 1 . . Duelist 1 | . . . . . . . . 1 . Sentry 25 | . . . 4 . 5 6 5 2 3 Hunter 6 | . . . . . 1 2 1 1 1 Programmer 5 | . . . . . . 3 . 2 . Best Kill Streak 10 | 1 3 2 3 1 3 10 7 5 3 Combat Bots Only 10 | . 2 2 3 . 2 10 4 5 2 Max Kills in Single Turn 4 | 1 1 1 1 1 2 4 2 2 2 Gunslinging . | . . . . . . . . . . Exploded 4 | . . . . . . 4 2 2 1 Melee . | . . . . . . . . . . Uniques/NPCs Destroyed . | . . . . . . . . . . Combat | -11 -10 -10 -9 -9 -8 -8 -8 -8 -8 -------- Run | Yrd Mat Min Mat Min Mat Gar Mat Gar Mat Hostile Shots Fired 533 | . 12 5 82 . 48 132 102 113 39 Missed 149 | . 2 2 30 . 9 38 29 25 14 Hits 384 | . 10 3 52 . 39 94 73 88 25 Melee 7 | . . . 6 . . . . . 1 Projectile 377 | . 10 3 46 . 39 94 73 88 24 Critical Strikes 19 | . . . 4 . 2 3 3 5 2 Part Disruptions 1 | . . . . . . . . 1 . Damage Taken 6048 | 30 111 23 736 . 560 1460 1223 1372 533 Core 636 | 15 12 6 43 . 28 165 181 132 54 Absorbed by Shields 53 | . . . . . . 9 . 44 . Regen/Repaired (Parts) 97 | . . . 97 . . . . . . Core Remaining (%) 89 | 94 . 86 . 89 . . . . . Volleys Fired 378 | 13 18 2 76 1 33 61 91 59 24 Largest 2 | 2 2 2 2 2 2 2 2 2 2 Hottest 150 | 80 80 80 112 112 112 140 150 150 120 Shots Fired 726 | 26 35 4 151 4 65 113 174 110 44 Gun 509 | 26 35 4 151 4 65 88 136 . . Cannon 165 | . . . . . . . 34 96 35 Launcher 52 | . . . . . . 25 4 14 9 Special . | . . . . . . . . . . Kinetic 50 | . 2 . 1 . . 3 44 . . Thermal 438 | . . . 88 4 52 85 78 96 35 Explosive 52 | . . . . . . 25 4 14 9 Electromagnetic 186 | 26 33 4 62 . 13 . 48 . . Robot Hit Streak 26 | 14 6 2 13 6 16 26 18 24 9 Robot Miss Streak 4 | 2 3 1 4 1 4 2 3 1 2 Penetration Max 1 | . . . . . . . 1 . . Secondary Targets 5 | . . . 2 . 1 2 . . . Max Gunslinging Chain 1 | . . . 1 . 1 1 . . . Shots Hit Robots 492 | 18 19 2 102 3 53 66 122 80 27 Core Hits 246 | 4 10 2 38 3 22 50 61 38 18 Critical Kills 1 | . . . . . . . . 1 . Critical Parts Destroyed . | . . . . . . . . . . Critical Strikes 30 | . . . 12 . 7 8 2 1 . Burn 26 | . . . 10 . 6 8 2 . . Meltdown 1 | . . . . . . . . 1 . Corrupt 3 | . . . 2 . 1 . . . . Melee Attacks 14 | . . . . . 10 4 . . . Impact 14 | . . . . . 10 4 . . . Slashing . | . . . . . . . . . . Piercing . | . . . . . . . . . . Sneak Attacks 1 | . . . . . 1 . . . . Combat Hostiles . | . . . . . . . . . . Follow-up Attacks . | . . . . . . . . . . Damage Inflicted 13470 | 316 343 22 1596 55 1172 2680 3561 2550 1175 Guns 5936 | 231 278 22 1551 53 860 1110 1831 . . Cannons 2891 | . . . . . . . 625 1783 483 Explosions 4274 | 85 65 . . . 100 1570 1030 767 657 Melee 175 | . . . . . 175 . . . . Ramming 194 | . . . 45 2 37 . 75 . 35 Kinetic 829 | . 22 . . . . . 807 . . Thermal 6752 | 85 65 . 1051 53 762 1110 1360 1783 483 Explosive 3727 | . . . . . . 1570 733 767 657 Electromagnetic 1793 | 231 256 22 500 . 198 . 586 . . Impact 175 | . . . . . 175 . . . . Slashing . | . . . . . . . . . . Piercing . | . . . . . . . . . . Highest Corruption 12 | . . . 12 12 . 1 7 8 8 Average Corruption 5 | . . . 7 12 . 1 2 7 8 Corruption Purged . | . . . . . . . . . . Corruption Blocked . | . . . . . . . . . . Effects 182 | . . . 56 29 . 6 28 39 24 Message Errors 42 | . . . 11 6 . 2 6 8 9 Matter Fused 61 | . . . 17 12 . 2 11 13 6 Heat Flow Errors 18 | . . . 4 3 . . 4 4 3 Energy Discharges 13 | . . . 4 3 . . 1 3 2 Parts Fused 6 | . . . 1 . . . 1 4 . Data Loss (minor) 16 | . . . 9 2 . . 3 . 2 Data Loss (major) 10 | . . . 3 1 . . 1 5 . Misfires 6 | . . . 3 2 . 1 . . . Alerts 4 | . . . 2 . . . . 1 1 Weapon Failures 6 | . . . 2 . . 1 1 1 1 Overload Shots . | . . . . . . . . . . Overflow Damage 299 | . . . . . 92 34 52 94 27 Projectiles 21 | . . . . . . . 9 12 . Explosions 178 | . . . . . . 34 40 82 22 Melee 100 | . . . . . 92 . 3 . 5 Knockbacks 8 | . . . 3 . 3 . 2 . . Impact 7 | . . . 3 . 2 . 2 . . Kinetic . | . . . . . . . . . . Secondary 1 | . . . . . 1 . . . . Self-Inflicted Damage 414 | 31 . . . . . 76 136 69 102 Shots 15 | 1 . . . . . 4 4 3 3 Rammed 26 | . . . 12 1 4 . 8 . 1 Targets Rammed 33 | . . . 14 1 6 . 11 . 1 Kicked . | . . . . . . . . . . Crushed 7 | . . . 2 . 2 . 3 . . Highest Temperature 322 | 72 72 54 243 148 78 200 231 318 322 Average Temperature 59 | 30 25 29 48 60 18 43 36 97 110 Received Heat Transfer 2196 | . 60 . 264 . 198 291 567 627 189 Effects 2 | . . . . . . . . 2 . Energy Bleed 2 | . . . . . . . . 2 . Siege Activations . | . . . . . . . . . . Martial Activations . | . . . . . . . . . . Shielding Activations . | . . . . . . . . . . Robots Disrupted . | . . . . . . . . . . Combat Hostiles . | . . . . . . . . . . Robots Corrupted 4 | . . . 1 . 1 . 1 . 1 Combat Hostiles 1 | . . . 1 . . . . . . Parts Fried 4 | . . . 1 . . . 3 . . Impact Corruptions 5 | . . . . . 3 . 1 . 1 Robots Melted 3 | . . . . . . 1 . 2 . Combat Hostiles 3 | . . . . . . 1 . 2 . Parts Melted 44 | . . . 8 . 8 11 1 15 1 Heat Transferred 13624 | 100 100 . 3034 111 1987 2664 2150 2701 777 Parts Sabotaged . | . . . . . . . . . . Parts Stolen . | . . . . . . . . . . Parts Stripped . | . . . . . . . . . . Power Chain Reactions 7 | 2 1 . . . 1 . 3 . . Alert | -11 -10 -10 -9 -9 -8 -8 -8 -8 -8 ------- Run | Yrd Mat Min Mat Min Mat Gar Mat Gar Mat Maximum Alert Level 4 | . . . 1 . . 4 3 3 2 Low Security (%) 46 | 100 100 100 97 100 100 13 . . . Level 1 3 | . . . 2 . . 7 5 . . Level 2 30 | . . . . . . 37 73 28 100 Level 3 18 | . . . . . . 37 20 71 . Level 4 . | . . . . . . 4 . . . Level 5 . | . . . . . . . . . . High Security . | . . . . . . . . . . Max Security . | . . . . . . . . . . Peak Influence 1129 | 5 102 56 213 49 66 1129 789 1070 582 Initial 549 | . 3 31 1 49 11 26 549 495 521 Average 379 | 1 33 27 112 6 16 657 544 829 486 Influence Increases 4359 | 20 155 65 792 58 259 1173 861 645 331 Destroy 0b10 Robot/C 2500 | . 60 40 480 40 140 580 520 480 160 Destroy 0b10 Robot/NC 280 | 20 15 . 95 5 35 . 90 . 20 Destroy Leader 524 | . 32 10 136 10 64 20 158 30 64 Allied During Kill 36 | . . . 29 3 4 . . . . Successful Hack 47 | . 15 . 5 . . . 22 . 5 Disable Machine 120 | . 15 . . . . 90 . . 15 Anti-Garrison Action 400 | . . . . . . 400 . . . Destroy Structure 272 | . 3 . 2 . 16 83 56 60 52 Partial Spotted 15 | . 15 . . . . . . . . Lose Combat Pursuer 165 | . . 15 45 . . . 15 75 15 Influence Decreases 3785 | 15 80 139 671 156 247 85 1228 337 827 Entered New Map 1563 | . 2 49 5 78 18 15 580 267 549 Time Decay 1918 | 15 78 90 602 78 179 . 598 . 278 Lost Part 260 | . . . 40 . 30 70 50 70 . Lost Ally 44 | . . . 24 . 20 . . . . Squads Dispatched 12 | . 3 . 1 1 3 . 4 . . Investigation 3 | . 3 . . . . . . . . Extermination . | . . . . . . . . . . Reinforcement 6 | . . . 1 . 1 . 4 . . Assault 1 | . . . . 1 . . . . . Garrison 2 | . . . . . 2 . . . . Intercept . | . . . . . . . . . . Searches Triggered . | . . . . . . . . . . Construction Impeded 2 | . . . . . . . 2 . . Haulers Reinforced . | . . . . . . . . . . Active Scanning Responses . | . . . . . . . . . . Cargo Convoy Interrupts . | . . . . . . . . . . Stealth | -11 -10 -10 -9 -9 -8 -8 -8 -8 -8 --------- Run | Yrd Mat Min Mat Min Mat Gar Mat Gar Mat Distress Signals 12 | . . . 3 . 3 . 6 . . Communications Jammed . | . . . . . . . . . . Distress Signals . | . . . . . . . . . . Times Spotted 161 | . 10 3 33 2 12 25 39 24 13 Peak Tracking Total 7 | . 2 3 4 2 4 6 7 4 4 Tactical Retreats 9 | . . 1 3 . . . 1 3 1 Traps | -11 -10 -10 -9 -9 -8 -8 -8 -8 -8 ------- Run | Yrd Mat Min Mat Min Mat Gar Mat Gar Mat Traps Triggered 16 | . . . 1 . . 8 . 7 . Indirectly . | . . . . . . . . . . Trap Hack Attempts . | . . . . . . . . . . Triggered . | . . . . . . . . . . Disarmed . | . . . . . . . . . . Reprogrammed . | . . . . . . . . . . Reused . | . . . . . . . . . . Traps Extracted . | . . . . . . . . . . Installed . | . . . . . . . . . . Triggered . | . . . . . . . . . . Machines | -11 -10 -10 -9 -9 -8 -8 -8 -8 -8 ---------- Run | Yrd Mat Min Mat Min Mat Gar Mat Gar Mat Machines Disabled 12 | . 1 . . . . 10 . . 1 Max in Single Turn 2 | . 1 . . . . 2 . . 1 Garrison Relay 4 | . . . . . . 4 . . . Machines Repaired . | . . . . . . . . . . Machines Dismantled . | . . . . . . . . . . Machines Sabotaged . | . . . . . . . . . . Overloaded Fab Kills . | . . . . . . . . . . Hacking | -11 -10 -10 -9 -9 -8 -8 -8 -8 -8 --------- Run | Yrd Mat Min Mat Min Mat Gar Mat Gar Mat Machines Accessed 24 | . 4 . 8 . 2 . 5 1 4 Terminals 17 | . 4 . 6 . . . 4 1 2 Fabricators . | . . . . . . . . . . Repair Stations 1 | . . . 1 . . . . . . Recycling Units 1 | . . . . . 1 . . . . Scanalyzers 3 | . . . 1 . . . . . 2 Garrison Access 2 | . . . . . 1 . 1 . . Total Hacks 74 | . 17 . 27 . 4 . 16 1 9 Successful 33 | . 7 . 14 . 3 . 5 . 4 Failed 41 | . 10 . 13 . 1 . 11 1 5 Catastrophic 13 | . 6 . 2 . . . 4 . 1 Database Lockouts . | . . . . . . . . . . Manual 41 | . 16 . 12 . . . 9 1 3 Terminals 51 | . 17 . 15 . . . 14 1 4 Fabricators . | . . . . . . . . . . Repair Stations 7 | . . . 7 . . . . . . Recycling Units 3 | . . . . . 3 . . . . Scanalyzers 10 | . . . 5 . . . . . 5 Garrison Access 3 | . . . . . 1 . 2 . . Terminal Hacks 6 | . 2 . . . . . 3 . 1 Part Schematic 2 | . . . . . . . 2 . . Robot Analysis 1 | . . . . . . . 1 . . Locate Traps 1 | . 1 . . . . . . . . Registered Components 1 | . 1 . . . . . . . . Zone Layout 1 | . . . . . . . . . 1 Fabricator Hacks . | . . . . . . . . . . Repair Station Hacks 6 | . . . 6 . . . . . . Scan Component 3 | . . . 3 . . . . . . Repair 3 | . . . 3 . . . . . . Recycling Unit Hacks 2 | . . . . . 2 . . . . Report Inventory 1 | . . . . . 1 . . . . Retrieve Components 1 | . . . . . 1 . . . . Scanalyzer 4 | . . . 2 . . . . . 2 Insert Component 2 | . . . 1 . . . . . 1 Analyze 2 | . . . 1 . . . . . 1 Garrison Access Hacks 3 | . . . . . 1 . 2 . . Unlock Access 2 | . . . . . 1 . 1 . . Coupler Status 1 | . . . . . . . 1 . . Unauthorized Hacks 12 | . 5 . 6 . . . . . 1 Terminals 12 | . 5 . 6 . . . . . 1 Assimilate 1 | . . . 1 . . . . . . Botnet 9 | . 3 . 5 . . . . . 1 Operators 2 | . 2 . . . . . . . . Fabricators . | . . . . . . . . . . Repair Stations . | . . . . . . . . . . Recycling Units . | . . . . . . . . . . Scanalyzers . | . . . . . . . . . . Garrison Access . | . . . . . . . . . . Data Cores Recovered . | . . . . . . . . . . Used . | . . . . . . . . . . Hacking Detections 21 | . 4 . 8 . . . 4 1 4 Full Trace Events 6 | . 3 . 3 . . . . . . Feedback Events . | . . . . . . . . . . Feedback Blocked . | . . . . . . . . . . Robot Schematics Acquired . | . . . . . . . . . . Robots Built . | . . . . . . . . . . Authchips . | . . . . . . . . . . Time . | . . . . . . . . . . Total Robot Build Rating . | . . . . . . . . . . Part Schematics Acquired 4 | . . . 1 . . . 2 . 1 Parts Built . | . . . . . . . . . . Authchips . | . . . . . . . . . . Time . | . . . . . . . . . . Total Part Build Rating . | . . . . . . . . . . Parts Repaired 3 | . . . 3 . . . . . . Time 257 | . . . 257 . . . . . . Parts Recycled . | . . . . . . . . . . Recycled Matter . | . . . . . . . . . . Retrieved Matter . | . . . . . . . . . . Retrieved Components 2 | . . . . . 2 . . . . Parts Scanalyzed 2 | . . . 1 . . . . . 1 Part Schematics Acquired 2 | . . . 1 . . . . . 1 Parts Damaged 1 | . . . 1 . . . . . . Bothacking | -11 -10 -10 -9 -9 -8 -8 -8 -8 -8 ------------ Run | Yrd Mat Min Mat Min Mat Gar Mat Gar Mat Used RIF Installer 2 | . . . . . . 1 . 1 . Patrol Navigation 1 | . . . . . . . . 1 . Robots Hacked . | . . . . . . . . . . Non-combat . | . . . . . . . . . . Combat . | . . . . . . . . . . Robot Hacks Applied . | . . . . . . . . . . Relay Couplers Released 16 | . . . . . . 16 . . . Machine Destruction 16 | . . . . . . 16 . . . Fabnet Peak Effective % . | . . . . . . . . . . Robots Rewired . | . . . . . . . . . . Allies Hacked . | . . . . . . . . . . Hacks Repelled . | . . . . . . . . . . Allies | -11 -10 -10 -9 -9 -8 -8 -8 -8 -8 -------- Run | Yrd Mat Min Mat Min Mat Gar Mat Gar Mat Total Allies 4 | . . 3 . 1 . . . . . Largest Group 3 | . . 3 3 1 1 . . . . Highest-Rated Group 77 | . . 77 77 31 31 . . . . Highest-Rated Ally 31 | . . 31 31 31 31 . . . . Total Orders . | . . . . . . . . . . Ally Attacks 58 | . . . 46 6 6 . . . . Total Damage 863 | . . . 715 63 85 . . . . Kills 14 | . . . 12 2 . . . . . Allies Corrupted . | . . . . . . . . . . Allies Melted . | . . . . . . . . . . Intel | -11 -10 -10 -9 -9 -8 -8 -8 -8 -8 ------- Run | Yrd Mat Min Mat Min Mat Gar Mat Gar Mat Active Infowar (turns) 1 | . . 1 . . . . . . . Sensors 1 | . . 1 . . . . . . . Robot Analysis Total 1 | . . . . . . . 1 . . Derelict Logs Recovered 1 | . . . . 1 . . . . . Drone Launches . | . . . . . . . . . . Drone Recoveries . | . . . . . . . . . . Exploration | -11 -10 -10 -9 -9 -8 -8 -8 -8 -8 ------------- Run | Yrd Mat Min Mat Min Mat Gar Mat Gar Mat Turns Passed 9977 | 153 288 193 2473 686 663 2039 1905 967 610 Spaces Moved 3640 | 85 185 146 851 281 204 735 628 307 218 Core 5 | 5 . . . . . . . . . Treads 2988 | . . . 738 281 204 735 628 307 95 Legs 524 | 80 185 146 113 . . . . . . Wheels 123 | . . . . . . . . . 123 Hover . | . . . . . . . . . . Flight . | . . . . . . . . . . Fastest Speed 50 | 50 120 120 120 240 240 240 236 235 145 Average Speed 219 | 115 120 120 215 240 240 240 239 248 213 Slowest Speed 560 | 120 120 120 240 240 240 320 240 560 320 Overloaded Moves . | . . . . . . . . . . Propulsion Burnouts . | . . . . . . . . . . Robots Hopped . | . . . . . . . . . . Potential Cave-ins . | . . . . . . . . . . Cave-ins Triggered . | . . . . . . . . . . Exploration Rate (%) 41 | 4 37 32 66 55 21 78 53 46 19 Regions Visited 9 Branch Regions 2 Pre-discovered Areas . | . . . . . . . . . . Known Exits Taken 2 | . . . . . 1 . 1 . . Unknown Exits Taken 5 | 1 1 1 1 1 . . . . . Scrap Searched 1 | . . . . 1 . . . . . Spaces Dug 43 | . . . . . 7 4 . 23 9 Terrain Destroyed 277 | 3 3 . . . 13 70 56 66 66 Melee 10 | . . . . . 7 3 . . . Projectile 11 | . . . . . . 1 6 1 3 AOE 256 | 3 3 . . . 6 66 50 65 63 Terrain Rammed . | . . . . . . . . . . Walls Destroyed . | . . . . . . . . . . Machines Disabled . | . . . . . . . . . . Actions | -11 -10 -10 -9 -9 -8 -8 -8 -8 -8 --------- Run | Yrd Mat Min Mat Min Mat Gar Mat Gar Mat Total 4853 | 110 216 160 1331 291 291 892 851 397 314 Wait 420 | . . 6 309 5 7 8 39 10 36 Move 3633 | 84 184 145 850 280 204 734 628 306 218 Hop . | . . . . . . . . . . Pick Up 105 | 3 6 1 35 1 10 21 23 1 4 Fast Attach 38 | 8 2 2 6 . . 3 6 3 8 Attach 28 | . 1 . 8 . 5 7 4 2 1 Detach 10 | 2 . . 5 . . 2 . . 1 Swap 77 | . 1 1 11 1 6 20 16 10 11 Drop 101 | . 4 3 17 2 10 20 33 2 10 Fire 378 | 13 18 2 76 1 33 61 91 59 24 Melee 14 | . . . . . 10 4 . . . Ram 1 | . . . . . . . . . 1 Kick . | . . . . . . . . . . Crush 32 | . . . 14 1 6 . 11 . . Escape Stasis 16 | . . . . . . 12 . 4 . Rewire . | . . . . . . . . . . Trap . | . . . . . . . . . . Miscellaneous . | . . . . . . . . . . Route ------- -11/Scrapyard -10/Materials -10/Mines -9/Materials (discovered 2 exits: *Mat / [*Min]) -9/Mines -8/Materials (discovered 2 exits: Sto / Gar) -8/Garrison (discovered 3 exits: *Mat x3) -8/Materials (discovered 2 exits: *Sto / Gar) -8/Garrison (discovered 3 exits: [*Fac x2] / *Mat) -8/Materials History --------- Turn | Location | Event 2 | -11/Scrapyard | Discovered new exit (range 16) 154 | -11/Scrapyard | Entered Materials 242 | -10/Materials | Discovered new exit (range 10) 347 | -10/Materials | Build established: Mutant 442 | -10/Materials | Entered Mines 469 | -10/Mines | Found a damaged Exp. Sensor Array with a note attached 472 | -10/Mines | Found Prototype Device 472 | -10/Mines | Identified Exp. Sensor Array 614 | -10/Mines | Received a Mining Laser from a helpful Derelict 623 | -10/Mines | Discovered new exit (range 4) 635 | -10/Mines | Entered Materials 635 | -9/Materials | Accompanied by 3 allies 635 | -9/Materials | Evolved 2 slots: Propulsion x2 640 | -9/Materials | Led the pair of lost Derelicts to an unsafe place 1096 | -9/Materials | Discovered new exit (range 15) 2207 | -9/Materials | Repaired Corrupted Beamcaster 2421 | -9/Materials | Repaired Broken Exp. Sensor Array 2549 | -9/Materials | Discovered new exit (range 11) 2646 | -9/Materials | System corruption reached 10% 2886 | -9/Materials | Repaired Imp. Medium Laser 3108 | -9/Materials | Entered Mines 3109 | -9/Mines | Met a Derelict testing a Signal Generator 3739 | -9/Mines | Discovered new exit (range 12) 3794 | -9/Mines | Entered Materials 3794 | -8/Materials | Accompanied by 1 ally 3794 | -8/Materials | Evolved 2 slots: Utility x2 3795 | -8/Materials | Identified exit to Storage 4304 | -8/Materials | Build established: Scavenger-Mutant 4457 | -8/Materials | Identified exit to Garrison 4457 | -8/Materials | Entered Garrison 4527 | -8/Garrison | Triggered checkpoint 4727 | -8/Garrison | Triggered checkpoint 4781 | -8/Garrison | Destroyed 10 combat bots 4819 | -8/Garrison | Triggered checkpoint 4881 | -8/Garrison | Triggered checkpoint 4947 | -8/Garrison | Triggered checkpoint 5037 | -8/Garrison | Installed Relay Interface Framework 5080 | -8/Garrison | Discovered new exit (range 11) 5173 | -8/Garrison | Triggered checkpoint 5263 | -8/Garrison | Garrison Relay disabled 5506 | -8/Garrison | Discovered new exit (range 13) 5603 | -8/Garrison | Triggered checkpoint 5649 | -8/Garrison | Garrison Relay disabled 6234 | -8/Garrison | Discovered new exit (range 15) 6259 | -8/Garrison | Triggered checkpoint 6351 | -8/Garrison | Garrison Relay disabled 6410 | -8/Garrison | Garrison Relay disabled 6496 | -8/Garrison | Entered Materials 6496 | -8/Materials | Discovered exit to Storage (range 14) 7539 | -8/Materials | Build established: Bothacker-Mutant 7681 | -8/Materials | Core integrity fell below 50% 8125 | -8/Materials | Lost 3 parts (2n1w) 8401 | -8/Materials | Identified exit to Garrison 8401 | -8/Materials | Entered Garrison 8555 | -8/Garrison | Triggered checkpoint 8667 | -8/Garrison | Triggered checkpoint 8734 | -8/Garrison | Triggered checkpoint 8871 | -8/Garrison | Discovered new exit (range 12) 8890 | -8/Garrison | Expanded RIF knowledge: Patrol Navigation 9123 | -8/Garrison | Triggered checkpoint 9188 | -8/Garrison | Discovered new exit (range 12) 9197 | -8/Garrison | Triggered checkpoint 9222 | -8/Garrison | Core integrity fell below 20% 9341 | -8/Garrison | Discovered new exit (range 6) 9358 | -8/Garrison | Lost 3 parts (1n1u1w) 9368 | -8/Garrison | Entered Materials 9978 | -8/Materials | Destroyed by L-31 Rogue with Katana Last Messages --------------- Schematic downloaded. 09927_ K-01 Serf collects debris. 09933_ U-05 Engineer lays Concrete. 09935_ U-05 Engineer builds a Door. 09938_ R-06 Scavenger collects Hvy. Assault Rifle. 09940_ U-05 Engineer builds a Wall. 09942_ R-06 Scavenger collects Lgt. Armor Plating. 09944_ Slammed into R-06 Scavenger. 09944_ Destroyed Com. Wheel. 09944_ R-06 Scavenger system corrupted by crushing effect. 09944_ U-05 Engineer builds a Wall. 09945_ R-06 Scavenger system terminally corrupted. 09952_ System corrupted: Matter fused (-10). 09952_ System corrupted: Ion Cannon failed to cycle. 09953_ The unstable cave ceiling collapses. 09957_ Critical hit (Burn: +37). 09958_ G-47 Trooper destroyed. 09962_ R-06 Scavenger collects Lgt. Nuclear Core. 09967_ System corrupted: Component data lost. 09971_ U-05 Engineer lays Concrete. Map ----- +----------------------------------------------------+ | | | | | | | | | | | | | | | | | | | | | | | | | ?????????????????????????????????????????????????? | | ?????????????????????????????????????????????????? | | ?????????????????????????????????????????????????? | | ?????????????????????????????????????????????????? | | ?????????????????????????????????????????????????? | | ?????????????????????????????????????????????????? | | ?????????????????????????????????????????????????? | | ????????????????????????########?????????????????? | | ????????????????????????#!! *#####?????????????? | | ?????????????????? ????#! = # #?????????????? | | ??????????????????? ??# ### #?????????????? | | ???????????????????# ??# "" ###?####??????????? | | ???????????????????# ?## ]S"" ## ############ | | ???????????????????# # @["" ## """ # | | ???????????????????# ###l###### """ # """ """ | | ???????????????????# T%^g! #?# """ # """ """ | | ???????????????????# ^ ^ #?# # """ """ | | ???????????????????# ^ #?# # | | ???????????????????## """ ### # "T" | | ????????????????????# "" == ###+### """ | | ????????????????????# "" #?# #?############ | | ????????????## ###### "" %[ #?# #???# | | ???????????## " ## #???# | | ???????? ### #???# | | ????????????# = #?# #???# | | ????????????# #######+########### ##### """ """ | | ??????????????????# / + """ """ | | ??????????????????# """ """ ####### ##### """ """ | | ??????????????????# """ """ #?????# #???# | | ??????????????????# """ """ #?????# #???########## | | ??????????????????# #?????# #????????????? | | ??????????????????# "" "" #????## ##???????????? | | ??????????????????# ""S"" ######!! #???????????? | | ??????????????????# ! """" + = [#???#####???? | | ??????????????????################ ! #?### #=###?? | | ?????????????????????????????????## ##?# !! =!!### | | ??????????????????????????????????# #??## !== | | ??????????????????????????????????# #???# # | +----------------------------------------------------+ Best States ------------- Heat Dissipation 45 Energy Generation 14 Energy Capacity 280 Matter Stores 300 Matter Capacity 450 Sight Range 16 Terrain Scan Density 10 Armor Coverage 225 Evasion (%) 55 Targeting Accuracy 12 Recoil Reduction 4 Item Schematics ----------------- Exp. Sensor Array | -9/Materials | Scanalyzed Cargo Storage Unit | -8/Materials | Hacked Adv. Weight Redist. System | -8/Materials | Hacked Arm. Treads | -8/Materials | Scanalyzed Robot Schematics ------------------ None Fabricated ------------ Nothing Repaired ---------- Beamcaster | 77% | -9/Materials | Corrupted Exp. Sensor Array | 62% | -9/Materials | Broken Imp. Medium Laser | 26% | -9/Materials Alien Tech Used ----------------- None Achievements -------------- None Challenges ------------ None Game ------ Seed SignalQuantumScrap Manual? 0 Play Time 00:57:55 Cumulative 244.0 hours Start 2025.09.26 @ 13:45:50 End 2025.09.29 @ 12:01:02 Sessions 3 Manual Loads 0 Difficulty Rogue Special Mode None Game No. 254 Rogue 254 Adventurer 0 Explorer 0 Win Type - Total 3 Types 3/0/0/0/0/0/0/0/0/0 Lore% 74 Gallery% 71 Achievement% 66 Wizard Run 0 Options --------- Layout 0 ASCII 0 Keyboard 1 Movement Vi Keybinds 0 Fullscreen 2 Font 18/TerminusBold Map View 76x50 Zoom Use 0% Tactical HUD 1 Map Filters NONE Filters NONE Steam X RUN: e49e35a0-d851-46e4-ad2d-a4fc559017f0